bitfinex/quotes_BTCUSD_20250110
["timestamp","ask_amount","ask_price","bid_price","bid_amount"]
[1736548199210,0.12318083,94913.0,94910.0,0.210725]
[1736548199445,0.12318083,94913.0,94910.0,0.61507405]
[1736548199672,0.12318083,94913.0,94912.0,0.210721]
[1736548199907,0.12318083,94913.0,94912.0,0.62872941]
[1736548200374,0.12318083,94913.0,94910.0,0.37912513]
[1736548200622,0.12318083,94913.0,94912.0,0.210721]
[1736548200859,0.12318083,94913.0,94912.0,0.17546862]
[1736548201089,0.1275,94924.0,94906.0,0.15]
[1736548201336,0.12318083,94923.0,94912.0,0.214721]
[1736548201562,0.210699,94922.0,94912.0,0.004]
[1736548202006,0.210699,94922.0,94912.0,0.005]
[1736548202758,0.210699,94922.0,94909.0,0.19749726]
[1736548202893,0.210701,94921.0,94908.0,0.15]
[1736548203098,0.210705,94919.0,94908.0,0.15]
[1736548203335,0.0791,94920.0,94909.0,0.210728]
[1736548205374,0.0791,94920.0,94908.0,0.15]
[1736548205589,0.0791,94920.0,94913.0,0.41934197]
[1736548206014,0.0791,94920.0,94913.0,0.34442425]
[1736548207332,0.0791,94920.0,94912.0,0.00248]
[1736548211251,0.0791,94920.0,94917.0,0.41934156]
[1736548211476,0.0791,94920.0,94918.0,0.41934156]
[1736548211792,0.0791,94920.0,94919.0,0.41934156]
[1736548212005,0.0791,94920.0,94912.0,0.00248]
[1736548212214,0.0791,94920.0,94919.0,0.41935965]
[1736548212883,0.0791,94920.0,94912.0,0.00248]
[1736548213899,0.0791,94920.0,94913.0,0.210719]
[1736548214741,0.0791,94920.0,94912.0,0.00248]
[1736548216266,0.12318083,94919.0,94912.0,0.00248]
[1736548217711,0.00851263,94918.0,94912.0,0.00248]
[1736548218357,0.12318083,94919.0,94912.0,0.00248]
[1736548218835,0.12318083,94919.0,94912.0,0.00348]
[1736548219334,0.12318083,94919.0,94912.0,0.00248]
[1736548219573,0.12318083,94919.0,94912.0,0.00348]
[1736548219813,0.12318083,94919.0,94912.0,0.32197817]
[1736548219941,0.12318083,94919.0,94912.0,0.32297817]
[1736548220190,0.12318083,94919.0,94912.0,0.00348]
[1736548220390,0.12318083,94919.0,94912.0,0.32297817]
[1736548220650,0.12318083,94919.0,94913.0,0.210719]
[1736548221078,0.12318083,94919.0,94913.0,0.53021717]
[1736548221748,0.12318083,94919.0,94914.0,0.01973177]
[1736548222702,0.12318083,94919.0,94915.0,0.01973177]
[1736548224018,0.12318083,94919.0,94916.0,0.01973177]
[1736548225241,0.12318083,94919.0,94917.0,0.01973177]
[1736548226183,0.12318083,94919.0,94918.0,0.01973177]
[1736548226977,0.13169715,94919.0,94917.0,0.001]
[1736548227411,0.13169715,94919.0,94918.0,0.01972769]
[1736548228157,0.13169715,94919.0,94914.0,0.31949817]
[1736548228367,0.13169715,94919.0,94918.0,0.001]
[1736548229377,0.13169715,94919.0,94914.0,0.31949817]
[1736548229621,0.13169715,94919.0,94915.0,0.31949817]
[1736548229861,0.13169715,94919.0,94914.0,0.31949817]
[1736548230112,0.13169715,94919.0,94914.0,0.32049817]
[1736548230322,0.13169715,94919.0,94915.0,0.31949817]
[1736548231263,0.13169715,94919.0,94914.0,0.31949817]
[1736548231459,0.12318083,94918.0,94914.0,0.31949817]
[1736548231710,0.12318083,94918.0,94915.0,0.001]
[1736548231985,0.00851393,94917.0,94915.0,0.001]
[1736548232519,0.00851393,94917.0,94914.0,0.31949817]
[1736548232763,0.00851393,94917.0,94914.0,0.32049817]
[1736548233019,0.00851393,94917.0,94915.0,0.31949817]
[1736548233249,0.00851393,94917.0,94914.0,0.31949817]
[1736548233491,0.00851393,94917.0,94915.0,0.001]
[1736548234654,0.00851393,94917.0,94913.0,0.31949817]
[1736548235110,0.00851393,94917.0,94914.0,0.001]
[1736548235347,0.00851393,94917.0,94914.0,0.02072958]
[1736548235549,0.00851393,94917.0,94915.0,0.001]
[1736548235750,0.00851393,94917.0,94914.0,0.34022775]
[1736548235871,0.00851393,94917.0,94916.0,0.01972958]
[1736548237706,0.00851393,94917.0,94916.0,0.02072958]
[1736548238414,0.00851393,94917.0,94916.0,0.02172958]
[1736548240817,0.00851393,94917.0,94916.0,0.02072958]
[1736548241234,0.00851393,94917.0,94916.0,0.02172958]
[1736548241445,0.00851393,94917.0,94916.0,0.02072958]
[1736548241998,0.00851393,94917.0,94916.0,0.01972958]
[1736548242206,0.00851393,94917.0,94916.0,0.02272958]
[1736548243090,0.00851393,94917.0,94916.0,0.02372958]
[1736548243713,0.12318083,94918.0,94916.0,0.02372958]
[1736548244478,0.12318083,94918.0,94916.0,0.02272958]
[1736548245058,0.12318083,94918.0,94917.0,0.01972958]
[1736548246050,0.13173575,94918.0,94917.0,0.01972958]
[1736548246569,0.10345125,94917.0,94913.0,0.31949817]
[1736548246939,0.00855373,94916.0,94912.0,0.00248]
[1736548247502,0.10345125,94917.0,94912.0,0.00248]
[1736548247807,0.0789,94914.0,94913.0,0.001]
[1736548248025,0.1247,94914.0,94913.0,0.001]
[1736548248245,0.289619,94913.0,94912.0,0.00248]
[1736548248662,0.29815761,94913.0,94912.0,0.00248]
[1736548249299,0.34395761,94913.0,94912.0,0.00248]
[1736548249725,0.44825737,94913.0,94912.0,0.00348]
[1736548249903,0.45025737,94913.0,94912.0,0.00348]
[1736548250139,0.45025737,94913.0,94912.0,0.00248]
[1736548250387,0.45125737,94913.0,94912.0,0.00248]
[1736548255508,0.64565703,94913.0,94912.0,0.00248]
[1736548261709,0.10097125,94912.0,94896.0,0.28401003]
[1736548261946,0.210746,94901.0,94896.0,0.28401003]
[1736548262532,0.0085095,94900.0,94896.0,0.28401003]
[1736548263597,0.0085095,94900.0,94896.0,0.28701003]
[1736548263799,0.0085095,94900.0,94897.0,0.28401003]
[1736548264258,0.0085095,94900.0,94898.0,0.28401003]
[1736548265037,0.0085095,94900.0,94896.0,0.28701003]
[1736548265439,0.0085095,94900.0,94898.0,0.28401003]
[1736548266586,0.0085095,94900.0,94898.0,0.28601003]
[1736548267069,0.0085095,94900.0,94898.0,0.28701003]
[1736548267287,0.21075,94899.0,94898.0,0.28701003]
[1736548267494,0.21075,94899.0,94898.0,0.001]
[1736548267655,0.21926668,94899.0,94898.0,0.001]
[1736548268320,0.21926668,94899.0,94895.0,0.28401003]
[1736548268956,0.21926668,94899.0,94898.0,0.001]
[1736548269126,0.21926668,94899.0,94895.0,0.28401003]
[1736548270036,0.21926668,94899.0,94896.0,0.01966934]
[1736548270906,0.21926668,94899.0,94895.0,0.28401003]
[1736548270907,0.21926668,94899.0,94897.0,0.01966934]
[1736548272169,0.21926668,94899.0,94896.0,0.28401003]
[1736548272621,0.21926668,94899.0,94894.0,0.28401003]
[1736548272887,0.210755,94897.0,94894.0,0.28401003]
[1736548273136,0.210759,94895.0,94885.0,0.28401003]
[1736548273336,0.0777,94896.0,94885.0,0.28401003]
[1736548273337,0.210761,94894.0,94885.0,0.28401003]
[1736548273465,0.210772,94889.0,94885.0,0.28401003]
[1736548273708,0.210781,94885.0,94882.0,0.28401003]
[1736548273928,0.210781,94885.0,94883.0,0.01968443]
[1736548274140,0.00850673,94884.0,94883.0,0.01968443]
[1736548274363,0.210772,94889.0,94883.0,0.01968443]
[1736548274773,0.00850387,94888.0,94883.0,0.01968443]
[1736548275100,0.210777,94887.0,94884.0,0.01968443]
[1736548275710,0.00967327,94886.0,94884.0,0.01968443]
[1736548275921,0.00967327,94886.0,94885.0,0.01968443]
[1736548276343,0.08128682,94885.0,94884.0,0.003]
[1736548276761,0.08128682,94885.0,94884.0,0.001]
[1736548276762,0.09337751,94885.0,94884.0,0.001]
[1736548276972,0.09337751,94885.0,94884.0,0.003]
[1736548277385,0.09337751,94885.0,94884.0,0.001]
[1736548277859,0.22496916,94885.0,94884.0,0.002]
[1736548278055,0.21702706,94885.0,94884.0,0.002]
[1736548278954,0.21702706,94885.0,94884.0,0.003]
[1736548279296,0.21702706,94885.0,94874.0,0.0001706]
[1736548279663,0.21702706,94885.0,94884.0,0.001]
[1736548280503,0.421566,94884.0,94874.0,0.0001706]
[1736548280906,0.210788,94882.0,94874.0,0.0001706]
[1736548281469,0.00823369,94881.0,94874.0,0.0001706]
[1736548282900,0.210792,94880.0,94874.0,0.0001706]
[1736548283337,0.00823369,94879.0,94874.0,0.0001706]
[1736548284091,0.00823369,94879.0,94875.0,0.0011708]
[1736548285383,0.00823369,94879.0,94875.0,0.0001708]
[1736548285830,0.00923369,94879.0,94875.0,0.0001708]
[1736548287637,0.210801,94876.0,94875.0,0.0001708]
[1736548288008,0.21903203,94876.0,94875.0,0.0001708]
[1736548289050,0.21903203,94876.0,94875.0,0.0011708]
[1736548291466,0.08011602,94875.0,94874.0,0.0001706]
[1736548291871,0.08834008,94875.0,94874.0,0.0001706]
[1736548294896,0.13514008,94875.0,94874.0,0.0001706]
[1736548295050,0.13614008,94875.0,94874.0,0.0001706]
[1736548298793,0.24043984,94875.0,94874.0,0.0001706]
[1736548300932,0.13614008,94875.0,94874.0,0.0001706]
[1736548306538,0.210808,94873.0,94871.0,0.0001706]
[1736548307071,0.00820679,94872.0,94871.0,0.0001706]
[1736548311079,0.00752044,94872.0,94871.0,0.0001706]
[1736548312646,0.00852044,94872.0,94871.0,0.0001706]
[1736548362049,0.06176925,94872.0,94871.0,0.0001706]
[1736548362190,0.00852044,94872.0,94871.0,0.0001706]
[1736548363473,0.1358202,94872.0,94871.0,0.0001706]
[1736548365125,0.4651202,94872.0,94871.0,0.0001706]
[1736548366938,0.4650602,94872.0,94871.0,0.0001706]
[1736548383966,0.4640602,94872.0,94871.0,0.0001706]
[1736548384175,0.4650602,94872.0,94871.0,0.0001706]
[1736548384351,0.4660602,94872.0,94871.0,0.0001706]
[1736548384773,0.4650602,94872.0,94871.0,0.0001706]
[1736548384950,0.4640602,94872.0,94871.0,0.0001706]
[1736548385148,0.4690602,94872.0,94871.0,0.0001706]
[1736548386226,0.54803793,94872.0,94871.0,0.0001706]
[1736548386645,0.59233793,94872.0,94871.0,0.0001706]
[1736548386864,0.58933793,94872.0,94871.0,0.0001706]
[1736548387099,0.59333793,94872.0,94871.0,0.0001706]
[1736548387335,0.82143793,94872.0,94871.0,0.0001706]
[1736548387539,0.81643793,94872.0,94871.0,0.0001706]
[1736548387779,0.81743793,94872.0,94871.0,0.0001706]
[1736548388257,0.82243793,94872.0,94871.0,0.0011706]
[1736548388719,0.81643793,94872.0,94871.0,0.0001706]
[1736548389248,0.81743793,94872.0,94871.0,0.0001706]
[1736548390166,0.82643793,94872.0,94871.0,0.0011706]
[1736548390310,0.81743793,94872.0,94871.0,0.0001706]
[1736548390541,0.81643793,94872.0,94871.0,0.0001706]
[1736548390792,0.82643793,94872.0,94871.0,0.0011706]
[1736548394297,0.82643793,94872.0,94871.0,6e-07]
[1736548404273,0.594624,94871.0,94867.0,2e-07]
[1736548404472,0.35279976,94868.0,94867.0,2e-07]
[1736548404901,0.3602478,94868.0,94867.0,2e-07]
[1736548407018,0.3684078,94868.0,94867.0,2e-07]
[1736548407659,0.3764078,94868.0,94867.0,0.0010002]
[1736548408411,0.7057078,94868.0,94867.0,2e-07]
[1736548408604,0.85850756,94868.0,94867.0,2e-07]
[1736548409697,0.173,94867.0,94857.0,0.0001706]
[1736548409955,0.788641,94858.0,94857.0,0.0001706]
[1736548410157,0.89294076,94858.0,94857.0,0.0001706]
[1736548410358,1.00467962,94858.0,94857.0,0.0001706]
[1736548411409,1.01567962,94858.0,94857.0,0.0011706]
[1736548412111,1.01267962,94858.0,94857.0,0.0011706]
[1736548412334,1.00467962,94858.0,94857.0,0.0001706]
[1736548412583,1.01367962,94858.0,94857.0,0.0011706]
[1736548413722,1.01767962,94858.0,94857.0,0.0011706]
[1736548414483,1.06717962,94858.0,94857.0,0.0011706]
[1736548414704,1.06717962,94858.0,94857.0,6e-07]
[1736548416368,1.08828305,94858.0,94857.0,6e-07]
[1736548416981,1.08828305,94858.0,94846.0,4e-07]
[1736548417205,0.48816476,94847.0,94846.0,4e-07]
[1736548417450,0.62988031,94847.0,94846.0,4e-07]
[1736548417872,0.62988031,94847.0,94831.0,0.0001706]
[1736548417873,0.15,94834.0,94831.0,0.0001706]
[1736548418074,0.15,94832.0,94831.0,0.0001706]
[1736548418286,0.48819876,94832.0,94831.0,0.0001706]
[1736548418601,0.59545783,94832.0,94831.0,0.0001706]
[1736548420756,0.59945783,94832.0,94831.0,0.0001706]
[1736548421363,0.623644,94832.0,94831.0,6e-07]
[1736548422466,0.699044,94832.0,94831.0,6e-07]
[1736548422673,0.71977184,94832.0,94831.0,6e-07]
[1736548423208,1.04907184,94832.0,94831.0,6e-07]
[1736548423811,1.0760622,94832.0,94831.0,6e-07]
[1736548426037,1.0720622,94832.0,94831.0,6e-07]
[1736548426261,0.713223,94821.0,94820.0,0.0001706]
[1736548426450,0.89600506,94821.0,94820.0,0.0001706]
[1736548426764,0.93066742,94821.0,94820.0,0.0001706]
[1736548427356,0.93066742,94821.0,94806.0,0.0001706]
[1736548427357,0.173,94818.0,94817.0,2e-07]
[1736548427614,0.28495977,94818.0,94817.0,2e-07]
[1736548428088,0.31195013,94818.0,94817.0,2e-07]
[1736548428227,0.41624989,94818.0,94817.0,2e-07]
[1736548428655,0.42524989,94818.0,94817.0,2e-07]
[1736548429092,0.75454989,94818.0,94817.0,2e-07]
[1736548429448,0.84913415,94818.0,94817.0,2e-07]
[1736548429685,0.85213415,94818.0,94817.0,2e-07]
[1736548430579,0.82514379,94818.0,94817.0,2e-07]
[1736548430807,0.85213415,94818.0,94817.0,2e-07]
[1736548431496,0.173,94816.0,94814.0,8e-07]
[1736548431726,0.38159952,94815.0,94814.0,8e-07]
[1736548431911,0.62693541,94815.0,94814.0,8e-07]
[1736548433573,0.62993541,94815.0,94814.0,8e-07]
[1736548434540,0.63793541,94815.0,94814.0,8e-07]
[1736548435204,0.96723541,94815.0,94814.0,8e-07]
[1736548436163,0.96723541,94815.0,94793.0,0.0001708]
[1736548436165,0.15,94802.0,94793.0,0.0001708]
[1736548436411,0.3293,94803.0,94793.0,0.0001708]
[1736548436412,0.233983,94794.0,94793.0,0.0001708]
[1736548436640,0.35307082,94794.0,94793.0,0.0001708]
[1736548438529,0.51207082,94794.0,94793.0,0.0001708]
[1736548438686,0.51507082,94794.0,94793.0,0.0001708]
[1736548438889,0.6087726,94794.0,94793.0,0.0001708]
[1736548439120,0.6057726,94794.0,94793.0,0.0001708]
[1736548440149,0.63104201,94794.0,94793.0,0.0001708]
[1736548441088,0.63674088,94794.0,94793.0,0.0001708]
[1736548441286,0.96604088,94794.0,94793.0,0.0001708]
[1736548441426,0.96204088,94794.0,94793.0,0.0001708]
[1736548441848,0.96504088,94794.0,94793.0,0.0001708]
[1736548442462,0.97404088,94794.0,94793.0,0.0001708]
[1736548442892,0.96504088,94794.0,94793.0,0.0001708]
[1736548443215,0.97404088,94794.0,94793.0,0.0001708]
[1736548443429,0.21101,94782.0,94781.0,0.0763]
[1736548443641,0.211021,94777.0,94768.0,0.0818]
[1736548443844,0.48832076,94777.0,94776.0,6e-07]
[1736548444081,0.49585044,94777.0,94776.0,6e-07]
[1736548444484,0.90565044,94777.0,94776.0,6e-07]
[1736548444717,1.0099502,94777.0,94776.0,6e-07]
[1736548445610,1.0119502,94777.0,94776.0,6e-07]
[1736548446504,1.11658508,94777.0,94776.0,6e-07]
[1736548446703,1.11997166,94777.0,94776.0,6e-07]
[1736548447143,1.12897166,94777.0,94776.0,6e-07]
[1736548447971,1.12497166,94777.0,94776.0,6e-07]
[1736548448618,1.11997166,94777.0,94776.0,6e-07]
[1736548448820,1.12697166,94777.0,94776.0,6e-07]
[1736548449063,0.713368,94756.0,94751.0,0.0001708]
[1736548449261,0.82482776,94756.0,94751.0,0.0001708]
[1736548449544,0.83237311,94756.0,94751.0,0.0001708]
[1736548450437,0.87937311,94756.0,94755.0,8e-07]
[1736548450684,0.99267287,94756.0,94755.0,8e-07]
[1736548451623,0.84137311,94756.0,94755.0,8e-07]
[1736548452065,0.87996352,94756.0,94755.0,8e-07]
[1736548452960,0.86796352,94756.0,94755.0,0.00049422]
[1736548453173,0.211077,94752.0,94751.0,2e-08]
[1736548453390,0.48837676,94752.0,94751.0,2e-08]
[1736548453605,0.60019885,94752.0,94751.0,2e-08]
[1736548454496,0.60919885,94752.0,94751.0,2e-08]
[1736548455352,0.61319885,94752.0,94751.0,2e-08]
[1736548455558,0.60419885,94752.0,94751.0,2e-08]
[1736548456236,0.94249885,94752.0,94751.0,2e-08]
[1736548457731,0.02052233,94752.0,94751.0,0.79277878]
[1736548458061,0.210998,94788.0,94773.0,0.1]
[1736548458066,0.0764,94828.0,94773.0,0.2778]
[1736548458273,0.3293,94831.0,94773.0,0.2778]
[1736548458274,0.00716,94803.0,94791.0,0.1]
[1736548458453,0.210956,94807.0,94791.0,0.1]
[1736548458671,0.00632194,94802.0,94791.0,0.1]
[1736548458890,0.210959,94805.0,94791.0,0.1]
[1736548459108,0.00632194,94801.0,94791.0,0.1]
[1736548459368,0.00632194,94800.0,94791.0,0.1]
[1736548459584,0.210956,94807.0,94791.0,0.1]
[1736548459807,0.00716,94801.0,94791.0,0.101]
[1736548460026,0.1106217,94806.0,94791.0,0.101]
[1736548460027,0.42194,94800.0,94791.0,0.101]
[1736548460239,0.210974,94798.0,94791.0,0.1]
[1736548460465,0.00632194,94799.0,94791.0,0.1]
[1736548460466,0.00716,94797.0,94791.0,0.101]
[1736548460709,0.01348194,94797.0,94791.0,0.102]
[1736548461184,0.01348194,94797.0,94791.0,0.1]
[1736548461417,0.01348194,94797.0,94791.0,0.104]
[1736548461856,0.01348194,94797.0,94791.0,0.1]
[1736548462062,0.01348194,94797.0,94791.0,0.104]
[1736548462269,0.00632194,94797.0,94791.0,0.108]
[1736548462478,0.00716,94796.0,94791.0,0.104]
[1736548462703,0.00716,94796.0,94791.0,0.109]
[1736548462899,0.00632194,94795.0,94791.0,0.109]
[1736548463524,0.00632194,94795.0,94791.0,0.104]
[1736548463728,0.00632194,94795.0,94791.0,0.106]
[1736548464235,0.00632194,94795.0,94791.0,0.11]
[1736548464682,0.00632194,94795.0,94791.0,0.106]
[1736548464879,0.00632194,94795.0,94791.0,0.11]
[1736548465363,0.00632194,94795.0,94791.0,0.104]
[1736548465934,0.00732194,94795.0,94791.0,0.11]
[1736548470342,0.01372343,94795.0,94791.0,0.11]
[1736548470548,0.01372343,94795.0,94791.0,0.01]
[1736548470748,0.01372343,94795.0,94791.0,0.11]
[1736548471774,0.01372343,94795.0,94792.0,0.1]
[1736548472203,0.02088343,94795.0,94792.0,0.1]
[1736548472430,0.01988343,94795.0,94792.0,0.1]
[1736548472669,0.01988343,94795.0,94791.0,0.004]
[1736548472891,0.02088343,94795.0,94792.0,0.106]
[1736548473129,0.02088343,94795.0,94792.0,0.11]
[1736548473630,0.01988343,94795.0,94792.0,0.104]
[1736548474079,0.02088343,94795.0,94792.0,0.104]
[1736548474279,0.01988343,94795.0,94792.0,0.104]
[1736548475667,0.02088343,94795.0,94792.0,0.01]
[1736548475901,0.02088343,94795.0,94792.0,0.11]
[1736548476678,0.02088343,94795.0,94794.0,0.310983]
[1736548476679,0.01372343,94795.0,94794.0,0.310983]
[1736548476943,0.00014833,94807.0,94806.0,0.310957]
[1736548477163,0.00014833,94807.0,94806.0,0.491457]
[1736548479370,0.00114833,94807.0,94806.0,0.502457]
[1736548483608,0.00114833,94807.0,94806.0,0.1915]
[1736548483843,0.00114833,94807.0,94806.0,0.011]
[1736548484063,0.01245291,94807.0,94806.0,0.011]
[1736548485168,0.01245291,94807.0,94806.0,0.007]
[1736548485564,0.01245291,94807.0,94806.0,0.01]
[1736548485810,0.53465772,94807.0,94806.0,0.003]
[1736548486059,0.53465772,94807.0,94806.0,0.005]
[1736548486318,0.53465772,94807.0,94780.0,0.1]
[1736548486319,0.173,94806.0,94780.0,0.1]
[1736548486574,0.211012,94782.0,94779.0,0.0773]
[1736548486832,0.211012,94782.0,94781.0,0.1]
[1736548487082,0.01122101,94781.0,94779.0,0.0773]
[1736548487320,0.211012,94782.0,94779.0,0.0773]
[1736548487585,0.211012,94782.0,94781.0,0.1]
[1736548487828,0.3293,94780.0,94775.0,0.1]
[1736548488062,0.43359976,94780.0,94776.0,0.1]
[1736548488297,0.01121145,94779.0,94776.0,0.1]
[1736548488800,0.211022,94777.0,94775.0,0.1]
[1736548489603,0.211026,94775.0,94764.0,0.2]
[1736548489765,0.211043,94767.0,94766.0,0.1]
[1736548490139,0.22217223,94767.0,94766.0,0.1]
[1736548491398,0.22217223,94767.0,94764.0,0.10014836]
[1736548491657,0.0072,94766.0,94764.0,0.00014836]
[1736548491913,0.211048,94765.0,94764.0,0.00014836]
[1736548492387,0.22217723,94765.0,94764.0,0.00014836]
[1736548492625,0.22217723,94765.0,94764.0,0.10014836]
[1736548492869,0.22217723,94765.0,94764.0,0.00114836]
[1736548493389,0.22217723,94765.0,94764.0,0.00014836]
[1736548493601,0.22217723,94765.0,94764.0,0.10414836]
[1736548493804,0.22217723,94765.0,94764.0,0.10214836]
[1736548494265,0.22217723,94765.0,94764.0,0.10514836]
[1736548495543,0.22217723,94765.0,94764.0,0.00514836]
[1736548496634,0.22217723,94765.0,94764.0,0.10514836]
[1736548496834,0.22217723,94765.0,94764.0,0.00514836]
[1736548499416,0.67877699,94765.0,94764.0,0.00514836]
[1736548501017,0.67877699,94765.0,94764.0,0.00214836]
[1736548501221,0.68277699,94765.0,94764.0,0.00214836]
[1736548501430,0.68277699,94765.0,94764.0,0.00014836]
[1736548501680,0.68377699,94765.0,94764.0,0.00014836]
[1736548501918,0.78807675,94765.0,94764.0,0.00014836]
[1736548503367,0.68377699,94765.0,94764.0,0.00014836]
[1736548509081,0.69097699,94765.0,94764.0,0.00014836]
[1736548510588,0.77137699,94765.0,94764.0,0.00014836]
[1736548514092,0.69097699,94765.0,94764.0,0.00014836]
[1736548520011,0.84097699,94765.0,94764.0,0.00014836]
[1736548520148,0.94527675,94765.0,94764.0,0.00014836]
[1736548522778,1.02637675,94765.0,94764.0,3.6e-07]
[1736548523025,1.07327675,94765.0,94764.0,3.6e-07]
[1736548523987,1.07227675,94765.0,94764.0,3.6e-07]
[1736548524159,1.06827675,94765.0,94764.0,3.6e-07]
[1736548524358,1.07127675,94765.0,94764.0,3.6e-07]
[1736548524559,1.08027675,94765.0,94764.0,3.6e-07]
[1736548524771,1.07727675,94765.0,94764.0,3.6e-07]
[1736548525091,1.08027675,94765.0,94764.0,3.6e-07]
[1736548525670,0.3293,94764.0,94751.0,2e-08]
[1736548525873,0.361077,94752.0,94751.0,2e-08]
[1736548526070,0.48837676,94752.0,94751.0,2e-08]
[1736548526304,0.49906261,94752.0,94751.0,2e-08]
[1736548527553,0.50006261,94752.0,94751.0,2e-08]
[1736548528418,0.50506261,94752.0,94751.0,2e-08]
[1736548528628,0.59778207,94752.0,94751.0,2e-08]
[1736548531045,0.92708207,94752.0,94751.0,2e-08]
[1736548532091,0.92411265,94752.0,94751.0,2e-08]
[1736548532903,0.93131265,94752.0,94751.0,2e-08]
[1736548533589,0.9444442,94752.0,94751.0,2e-08]
[1736548534764,0.96573627,94752.0,94751.0,2e-08]
[1736548535987,1.04233627,94752.0,94751.0,2e-08]
[1736548537731,0.96573627,94752.0,94751.0,2e-08]
[1736548538456,0.87301681,94752.0,94751.0,2e-08]
[1736548541734,0.86581681,94752.0,94751.0,2e-08]
[1736548541982,0.87297681,94752.0,94751.0,2e-08]
[1736548544831,0.37144005,94752.0,94751.0,2e-08]
[1736548545071,0.210941,94814.0,94773.0,0.2]
[1736548545333,0.210938,94815.0,94773.0,0.55429976]
[1736548545543,0.23511568,94794.0,94793.0,0.1]
[1736548545794,0.23511568,94794.0,94793.0,0.35]
[1736548546056,0.00716,94812.0,94794.0,0.210983]
[1736548546281,0.0081571,94812.0,94811.0,0.1]
[1736548546542,0.11245686,94812.0,94811.0,0.1]
[1736548546799,0.11145976,94812.0,94811.0,0.1]
[1736548547026,0.11160806,94812.0,94811.0,0.1]
[1736548547750,0.11460806,94812.0,94811.0,0.1]
[1736548548405,0.11460806,94812.0,94805.0,0.1]
[1736548548726,0.11460806,94812.0,94795.0,0.210979]
[1736548548727,0.10744806,94812.0,94811.0,0.1]
[1736548549003,0.11160806,94812.0,94811.0,0.1]
[1736548551129,0.11360806,94812.0,94811.0,0.1]
[1736548551364,0.11160806,94812.0,94811.0,0.1]
[1736548551575,0.10444806,94812.0,94811.0,0.1]
[1736548551769,0.11160806,94812.0,94811.0,0.1]
[1736548552038,0.0001483,94812.0,94811.0,0.1]
[1736548552295,0.0093083,94812.0,94811.0,0.1]
[1736548553504,0.0021483,94812.0,94811.0,0.1]
[1736548555067,0.0001483,94812.0,94811.0,0.1]
[1736548555279,0.0001483,94812.0,94811.0,0.101]
[1736548556065,0.0001483,94812.0,94811.0,0.103]
[1736548557220,0.0001483,94812.0,94811.0,0.313945]
[1736548563171,0.0001483,94812.0,94811.0,0.103]
[1736548563832,0.0001483,94812.0,94808.0,0.1]
[1736548564040,0.0001483,94812.0,94811.0,0.0173593]
[1736548564926,0.00657564,94819.0,94811.0,0.0173593]
[1736548565399,0.01270644,94818.0,94811.0,0.0173593]
[1736548566993,0.01270644,94818.0,94811.0,0.0183593]
[1736548568942,0.01370644,94818.0,94811.0,0.0183593]
[1736548569456,0.01370644,94818.0,94811.0,0.0173593]
[1736548569678,0.01370644,94818.0,94811.0,0.0193593]
[1736548570437,0.01270644,94818.0,94811.0,0.0193593]
[1736548571890,0.01270644,94818.0,94811.0,0.0213593]
[1736548572972,0.01270644,94818.0,94813.0,0.0768]
[1736548573266,0.00736,94822.0,94813.0,0.0768]
[1736548573433,0.00736,94822.0,94811.0,0.0213593]
[1736548573644,0.01272603,94821.0,94811.0,0.0213593]
[1736548573954,0.01272603,94821.0,94811.0,0.0193593]
[1736548574365,0.01272603,94821.0,94813.0,0.001]
[1736548574813,0.22364903,94821.0,94813.0,0.001]
[1736548575316,0.210934,94817.0,94813.0,0.001]
[1736548575514,0.210934,94817.0,94813.0,0.003]
[1736548575635,0.01271762,94816.0,94813.0,0.001]
[1736548575838,0.01271762,94816.0,94814.0,0.0079116]
[1736548576729,0.01271762,94816.0,94815.0,0.0079116]
[1736548578467,0.01271762,94816.0,94815.0,0.0099116]
[1736548578680,0.210923,94821.0,94815.0,0.0129116]
[1736548578944,0.01272106,94820.0,94815.0,0.0129116]
[1736548579196,0.210928,94819.0,94815.0,0.0129116]
[1736548579436,0.01271762,94818.0,94815.0,0.0129116]
[1736548579641,0.01271762,94818.0,94815.0,0.0099116]
[1736548579898,0.01271762,94818.0,94815.0,0.0109116]
[1736548580120,0.210923,94821.0,94816.0,0.0079116]
[1736548580569,0.210928,94819.0,94816.0,0.0079116]
[1736548580777,0.01272603,94818.0,94816.0,0.0079116]
[1736548581204,0.01272603,94818.0,94817.0,0.0079116]
[1736548582810,0.01272603,94818.0,94817.0,0.0099116]
[1736548583069,0.210923,94821.0,94817.0,0.0099116]
[1736548583263,0.01040725,94818.0,94817.0,0.0099116]
[1736548583530,0.210923,94821.0,94817.0,0.0099116]
[1736548583734,0.01040725,94818.0,94817.0,0.002]
[1736548583944,0.210926,94820.0,94817.0,0.004]
[1736548584180,0.01040725,94818.0,94817.0,0.004]
[1736548584470,0.01040725,94818.0,94811.0,0.0173593]
[1736548584675,0.210932,94817.0,94811.0,0.0173593]
[1736548584903,0.01040587,94817.0,94811.0,0.0173593]
[1736548585391,0.210916,94825.0,94817.0,0.0099175]
[1736548585640,0.210913,94826.0,94819.0,0.1]
[1736548585868,0.210913,94826.0,94820.0,0.0173593]
[1736548586095,0.2118927,94830.0,94820.0,0.0173593]
[1736548586096,0.2118917,94830.0,94820.0,0.0173593]
[1736548586326,0.4227957,94830.0,94820.0,0.0252768]
[1736548587458,0.4227957,94830.0,94821.0,0.0079175]
[1736548587710,0.2118917,94830.0,94821.0,0.0079175]
[1736548587938,0.001,94825.0,94821.0,0.0079175]
[1736548588166,0.210904,94830.0,94821.0,0.0079175]
[1736548588391,0.425808,94830.0,94821.0,0.0079175]
[1736548588797,0.421808,94830.0,94822.0,0.0079175]
[1736548589041,0.424808,94830.0,94822.0,0.29047958]
[1736548589411,0.421808,94830.0,94822.0,0.29047958]
[1736548589561,0.424808,94830.0,94822.0,0.29047958]
[1736548590023,0.213904,94830.0,94828.0,0.28256208]
[1736548590817,0.210904,94830.0,94828.0,0.28256208]
[1736548591020,0.210904,94830.0,94828.0,0.41722058]
[1736548591231,0.213904,94830.0,94828.0,0.41722058]
[1736548591465,0.210904,94830.0,94828.0,0.41722058]
[1736548591874,0.213904,94830.0,94828.0,0.41722058]
[1736548592117,0.213904,94830.0,94820.0,0.0173593]
[1736548592118,0.213904,94830.0,94827.0,0.41722058]
[1736548592779,0.213904,94830.0,94824.0,0.41722058]